bitfinex-derivatives/quotes_ETHF0:USTF0_20210109
["timestamp","ask_amount","ask_price","bid_price","bid_amount"]
[1610196621881,23.12438848,1219.6,1219.5,109.9961867]
[1610196622179,6.06211862,1219.6,1219.5,109.9961867]
[1610196622780,36.06211862,1219.6,1219.5,109.9961867]
[1610196622982,57.05640313,1219.6,1219.5,109.9961867]
[1610196623180,39.99577744,1219.6,1219.5,109.9961867]
[1610196623881,59.06714991,1219.6,1219.5,109.9961867]
[1610196624681,39.99577744,1219.6,1219.5,109.9961867]
[1610196628583,59.0673421,1219.6,1219.5,109.9961867]
[1610196632086,29.0673421,1219.6,1219.5,109.9961867]
[1610196633091,18.02319882,1219.6,1219.5,109.9961867]
[1610196633495,9.99577744,1219.6,1219.5,109.9961867]
[1610196633892,23.12322194,1219.6,1219.5,109.9961867]
[1610196635094,6.06211862,1219.6,1219.5,109.9961867]
[1610196635395,9.99778357,1219.6,1219.5,109.9961867]
[1610196635794,6.06211862,1219.6,1219.5,109.9961867]
[1610196636395,25.05072474,1219.6,1219.5,109.9961867]
[1610196636796,6.06211862,1219.6,1219.5,109.9961867]
[1610196636995,6.06211862,1219.6,1219.5,159.9961867]
[1610196637198,58.95123151,1219.6,1219.5,162.0215867]
[1610196637398,53.93146306,1219.6,1219.5,162.0215867]
[1610196637597,4.00959,1219.6,1219.5,162.0215867]
[1610196638997,4.00959,1219.6,1219.5,112.0215867]
[1610196639496,4.00959,1219.6,1219.5,162.0215867]
[1610196642400,54.92199903,1220.0,1219.5,162.0215867]
[1610196642700,54.91955918,1220.1,1219.6,50.0]
[1610196642901,4.00959,1219.8,1219.7,4.00959]
[1610196643101,4.00959,1219.8,1219.7,54.00959]
[1610196643701,4.00959,1219.8,1219.7,4.00959]
[1610196644503,4.00959,1219.8,1219.7,54.00959]
[1610196644703,4.00959,1219.8,1219.7,113.69389]
[1610196645504,4.00959,1219.8,1219.7,54.00959]
[1610196646404,30.0,1220.2,1219.7,54.00959]
[1610196646605,30.0,1220.2,1220.1,64.9187]
[1610196646806,30.0,1220.2,1220.1,66.7521]
[1610196647005,34.00959,1220.2,1220.1,70.76169]
[1610196648610,34.00959,1220.2,1220.1,120.76169]
[1610196649010,30.0,1220.2,1220.1,120.76169]
[1610196649809,30.0,1220.2,1220.1,55.84299]
[1610196650913,30.0,1220.2,1220.1,57.09489486]
[1610196652914,34.00959,1220.2,1220.1,57.09489486]
[1610196653515,34.00959,1220.2,1220.1,7.09489486]
[1610196654015,34.00959,1220.2,1220.1,3.08530486]
[1610196654215,30.0,1220.2,1220.1,3.08530486]
[1610196654415,30.0,1220.2,1220.1,53.08530486]
[1610196658920,30.0,1220.2,1220.1,57.09489486]
[1610196665831,30.0,1220.2,1220.1,123.00619486]
[1610196667033,34.00959,1220.2,1220.1,118.99660486]
[1610196668532,34.00959,1220.2,1220.1,53.08530486]
[1610196669134,34.00959,1220.2,1220.1,3.08530486]
[1610196672039,34.00959,1220.2,1220.1,1.25190486]
[1610196672239,88.92666131,1220.2,1220.1,1.25190486]
[1610196672438,63.16365887,1220.2,1220.1,1.25190486]
[1610196672838,48.12016006,1220.2,1220.1,1.25190486]
[1610196673039,78.12016006,1220.2,1220.1,1.25190486]
[1610196673240,95.17191718,1220.2,1220.1,1.25190486]
[1610196673439,97.01481718,1220.2,1220.1,1.25190486]
[1610196673640,97.01481718,1220.2,1219.5,109.9961867]
[1610196673841,79.96306006,1220.2,1219.5,109.9961867]
[1610196674141,54.9384546,1219.6,1219.5,109.9961867]
[1610196674544,54.9363884,1219.7,1219.5,109.9961867]
[1610196674943,54.9363884,1219.7,1219.5,112.1454867]
[1610196675143,4.00959,1219.6,1219.5,112.1454867]
[1610196676545,54.92400944,1220.0,1219.5,112.1454867]
[1610196676744,54.92400944,1220.0,1219.6,65.633]
[1610196676945,54.91920726,1220.1,1219.6,65.633]
[1610196677147,58.92879726,1220.1,1219.8,4.00959]
[1610196677347,58.92879726,1220.1,1219.8,5.75279]
[1610196677747,4.00959,1220.1,1219.8,1.7432]
[1610196677946,58.92688902,1220.1,1219.8,1.7432]
[1610196678949,58.92688902,1220.1,1219.9,50.0]
[1610196679349,54.91967666,1220.0,1219.9,50.0]
[1610196679750,2.16965756,1220.0,1219.9,50.0]
[1610196679948,14.14901546,1220.0,1219.9,50.0]
[1610196680148,14.14901546,1220.0,1219.8,1.7432]
[1610196680350,54.92059997,1220.0,1219.8,1.7432]
[1610196680950,55.19628875,1220.0,1219.8,1.7432]
[1610196681150,4.00959,1219.9,1219.8,1.7432]
[1610196682457,4.00959,1219.9,1219.7,109.5575]
[1610196683256,4.00959,1219.9,1219.7,59.5575]
[1610196683658,4.00959,1219.9,1219.7,109.5575]
[1610196684757,4.00959,1219.9,1219.7,59.5575]
[1610196685157,4.00959,1219.9,1219.7,109.5575]
[1610196685357,4.00959,1219.9,1219.7,50.0]
[1610196685758,4.00959,1219.9,1219.5,174.7632867]
[1610196686958,84.91257313,1220.2,1219.5,174.7632867]
[1610196687159,4.00959,1220.0,1219.9,4.00959]
[1610196688561,4.00959,1220.0,1219.6,51.25264765]
[1610196689061,4.00959,1220.0,1219.6,55.26223765]
[1610196689261,4.00959,1220.0,1219.9,1.25263112]
[1610196689461,4.00959,1220.0,1219.9,3.53883112]
[1610196689861,4.00959,1220.0,1219.9,53.53883112]
[1610196690864,30.0,1220.2,1219.9,3.53883112]
[1610196691063,30.0,1220.2,1220.1,4.00959]
[1610196691265,30.0,1220.2,1220.1,50.41849]
[1610196691964,30.0,1220.2,1220.1,5.26196855]
[1610196692567,30.0,1220.2,1220.1,55.26196855]
[1610196692765,30.0,1220.2,1220.1,104.16046855]
[1610196693365,30.0,1220.2,1220.1,55.26196855]
[1610196693966,30.0,1220.2,1220.1,120.97606855]
[1610196703677,30.0,1220.2,1220.1,55.26196855]
[1610196703876,30.0,1220.2,1220.1,5.26196855]
[1610196705779,30.0,1220.2,1220.1,63.39416855]
[1610196715590,30.0,1220.2,1220.1,59.38457855]
[1610196716792,30.0,1220.2,1220.1,51.25237855]
[1610196717392,30.0,1220.2,1220.1,55.26196855]
[1610196718995,30.0,1220.2,1220.1,5.26196855]
[1610196720098,30.0,1220.2,1220.1,55.26196855]
[1610196721200,30.0,1220.2,1220.1,51.25237855]
[1610196722404,30.0,1220.2,1220.1,1.25237855]
[1610196724101,30.0,1220.2,1220.0,1.25259018]
[1610196724502,54.91315663,1220.1,1220.0,1.25259018]
[1610196725303,58.92274663,1220.1,1220.0,1.25259018]
[1610196725503,58.92274663,1220.1,1219.6,1.25285737]
[1610196725703,17.59934761,1220.1,1219.6,1.25285737]
[1610196725906,45.8897453,1220.0,1219.6,1.25285737]
[1610196726104,54.91731835,1220.0,1219.6,1.25285737]
[1610196727305,4.00959,1219.7,1219.6,1.25285737]
[1610196727706,54.91813131,1220.1,1219.6,1.25285737]
[1610196727910,84.91482347,1220.2,1219.6,1.25285737]
[1610196728710,30.0,1220.2,1219.6,1.25285737]
[1610196728909,30.0,1220.2,1219.6,51.25285737]
[1610196729109,84.40924915,1220.2,1219.6,51.25285737]
[1610196729309,4.00959,1219.7,1219.6,51.25285737]
[1610196729610,4.00959,1219.7,1219.6,50.0]
[1610196729810,4.00959,1219.7,1219.5,116.1550767]
[1610196730209,84.40924915,1220.2,1219.5,116.1550767]
[1610196730411,30.0,1220.2,1219.5,116.1550767]
[1610196731011,30.0,1220.2,1219.5,166.1550767]
[1610196731211,30.0,1220.2,1219.6,1.25258295]
[1610196731411,4.00959,1219.8,1219.7,4.00959]
[1610196732515,4.00959,1219.8,1219.7,5.26217626]
[1610196733516,30.0,1220.2,1219.7,5.26217626]
[1610196733716,30.0,1220.2,1219.7,65.69067626]
[1610196734821,30.0,1220.2,1219.7,115.69067626]
[1610196735021,30.0,1220.2,1219.8,50.0]
[1610196735220,30.0,1220.2,1219.8,53.43889865]
[1610196735420,34.00959,1220.2,1220.0,4.00959]
[1610196736019,34.00959,1220.2,1220.0,54.00959]
[1610196736220,34.00959,1220.2,1220.1,50.0]
[1610196736420,34.00959,1220.2,1220.1,52.547]
[1610196736620,34.00959,1220.2,1220.1,53.79929108]
[1610196737221,34.00959,1220.2,1220.1,3.79929108]
[1610196738022,34.00959,1220.2,1220.1,53.79929108]
[1610196738421,34.00959,1220.2,1220.1,3.79929108]
[1610196739123,34.00959,1220.2,1220.1,53.79929108]
[1610196744337,34.00959,1220.2,1220.1,62.77289108]
[1610196745439,30.0,1220.2,1220.1,62.77289108]
[1610196756057,30.0,1220.2,1220.1,53.79929108]
[1610196758158,30.0,1220.2,1220.1,116.58529108]
[1610196761865,30.0,1220.2,1220.1,53.79929108]
[1610196762164,30.0,1220.2,1220.1,117.94919108]
[1610196762364,30.0,1220.2,1220.1,53.79929108]
[1610196763768,22.0327,1220.2,1220.1,53.79929108]
[1610196766371,12.1909,1220.2,1220.1,53.79929108]
[1610196777088,12.1909,1220.2,1220.1,117.57959108]
[1610196781192,12.1909,1220.2,1220.1,53.79929108]
[1610196781792,16.20049,1220.2,1220.1,53.79929108]
[1610196782195,46.20049,1220.2,1220.1,53.79929108]
[1610196782994,47.85159,1220.2,1220.1,53.79929108]
[1610196783193,46.20049,1220.2,1220.1,53.79929108]
[1610196783595,55.57009,1220.2,1220.1,53.79929108]
[1610196783994,110.47481819,1220.2,1220.1,53.79929108]
[1610196784394,69.04150729,1220.2,1220.1,53.79929108]
[1610196784699,84.08164073,1220.2,1220.1,53.79929108]
[1610196784896,84.08164073,1220.2,1220.1,52.547]
[1610196785695,84.08164073,1220.2,1220.1,50.0]
[1610196788496,54.08164073,1220.2,1220.1,50.0]
[1610196788696,69.04150729,1220.2,1220.1,50.0]
[1610196788896,110.48067239,1220.2,1220.1,50.0]
[1610196789497,110.48067239,1220.2,1219.6,68.7371]
[1610196789797,4.00959,1219.7,1219.6,68.7371]
[1610196792200,4.00959,1219.7,1219.5,109.9961867]
[1610196798009,4.00959,1219.7,1219.6,50.0]
[1610196800117,4.00959,1219.7,1219.5,109.9961867]
[1610196800319,4.00959,1219.7,1219.6,1.25271975]
[1610196803520,4.00959,1219.7,1219.6,51.25271975]
[1610196804521,4.00959,1219.7,1219.6,1.25271975]
[1610196806022,4.00959,1219.7,1219.6,51.25271975]
[1610196807322,4.00959,1219.7,1219.6,1.25271975]
[1610196809724,4.00959,1219.7,1219.6,51.25271975]
[1610196810124,4.00959,1219.7,1219.6,1.25271975]
[1610196812725,13.40539,1219.7,1219.6,1.25271975]
[1610196813128,4.00959,1219.7,1219.6,1.25271975]
[1610196813525,68.10069,1219.7,1219.6,1.25271975]
[1610196814327,4.00959,1219.7,1219.6,1.25271975]
[1610196815725,4.00959,1219.7,1219.6,51.25271975]
[1610196816928,4.00959,1219.7,1219.6,1.25271975]
[1610196818434,4.00959,1219.7,1219.6,51.25271975]
[1610196818834,4.00959,1219.7,1219.6,1.25271975]
[1610196819435,34.00959,1219.7,1219.6,1.25271975]
[1610196820737,43.55119,1219.7,1219.6,1.25271975]
[1610196821638,4.00959,1219.7,1219.6,1.25271975]
[1610196822239,82.92799,1219.7,1219.6,1.25271975]
[1610196822739,34.00959,1219.7,1219.6,1.25271975]
[1610196823339,36.47089,1219.7,1219.6,1.25271975]
[1610196823539,56.20613067,1219.7,1219.6,1.25271975]
[1610196824139,59.6255,1219.6,1219.5,109.9961867]
[1610196824339,64.31458293,1219.6,1219.5,109.9961867]
[1610196824539,94.31458293,1219.6,1219.5,109.9961867]
[1610196824738,117.38422765,1219.6,1219.5,109.9961867]
[1610196829643,102.33706316,1219.6,1219.5,109.9961867]
[1610196830243,117.38685895,1219.6,1219.5,109.9961867]
[1610196830443,102.33706316,1219.6,1219.5,109.9961867]
[1610196833344,119.39425707,1219.6,1219.5,109.9961867]
[1610196833944,102.33706316,1219.6,1219.5,109.9961867]
[1610196834244,119.39382221,1219.6,1219.5,109.9961867]
[1610196834647,102.33706316,1219.6,1219.5,109.9961867]
[1610196834845,59.76920558,1219.6,1219.5,109.9961867]
[1610196835246,51.74672535,1219.6,1219.5,109.9961867]
[1610196836546,34.68908293,1219.6,1219.5,109.9961867]
[1610196836745,4.68908293,1219.6,1219.5,109.9961867]
[1610196837346,16.63310881,1219.6,1219.5,109.9961867]
[1610196837946,46.63310881,1219.6,1219.5,109.9961867]
[1610196838147,49.70258933,1219.6,1219.5,109.9961867]
[1610196838348,112.20808933,1219.6,1219.5,109.9961867]
[1610196838647,120.23164903,1219.6,1219.5,109.9961867]
[1610196839047,105.18210002,1219.6,1219.5,109.9961867]
[1610196839849,75.18210002,1219.6,1219.5,109.9961867]
[1610196840751,105.18210002,1219.6,1219.5,109.9961867]
[1610196842455,120.2310188,1219.6,1219.5,109.9961867]
[1610196842655,90.2310188,1219.6,1219.5,109.9961867]
[1610196843355,27.7255188,1219.6,1219.5,109.9961867]
[1610196843556,12.67660002,1219.6,1219.5,109.9961867]
[1610196843756,4.65304032,1219.6,1219.5,109.9961867]
[1610196844359,1.5835598,1219.6,1219.5,109.9961867]
[1610196845059,54.43221691,1219.6,1219.5,109.9961867]
[1610196845460,54.3820767,1219.6,1219.5,109.9961867]
[1610196845860,60.84724934,1219.7,1219.5,109.9961867]
[1610196846060,60.84724934,1219.7,1219.5,159.9961867]
[1610196846461,6.47089,1219.7,1219.6,50.0]
[1610196846864,4.00959,1219.7,1219.6,50.0]
[1610196847564,4.00959,1219.7,1219.5,159.9961867]
[1610196847963,4.00959,1219.7,1219.6,51.25285899]
[1610196848164,4.00959,1219.7,1219.6,55.26244899]
[1610196849264,4.00959,1219.7,1219.6,54.00959]
[1610196849663,66.55083579,1220.2,1219.6,54.00959]
[1610196850066,66.55083579,1220.2,1219.7,50.0]
[1610196850264,4.00959,1220.1,1220.0,4.00959]
[1610196853567,12.1909,1220.2,1220.0,13.54939]
[1610196853769,12.1909,1220.2,1220.0,16.07209]
[1610196854568,12.1909,1220.2,1220.0,6.53229]
[1610196856369,12.1909,1220.2,1220.1,1.25189515]
[1610196857469,12.1909,1220.2,1220.1,47.78009515]
[1610196858568,12.1909,1220.2,1220.1,97.78009515]
[1610196862377,16.20049,1220.2,1220.1,97.78009515]
[1610196863979,12.1909,1220.2,1220.1,97.78009515]
[1610196870490,12.1909,1220.2,1220.1,51.25189515]
[1610196871490,12.1909,1220.2,1220.1,1.25189515]
[1610196872289,16.20049,1220.2,1220.1,1.25189515]
[1610196872690,12.1909,1220.2,1220.1,1.25189515]
[1610196873890,12.1909,1220.2,1220.1,51.25189515]
[1610196874391,16.20049,1220.2,1220.1,55.26148515]
[1610196874591,16.20049,1220.2,1220.1,51.25189515]
[1610196876596,12.1909,1220.2,1220.1,51.25189515]
[1610196882501,16.20049,1220.2,1220.1,51.25189515]
[1610196884305,12.1909,1220.2,1220.1,51.25189515]
[1610196891715,12.1909,1220.2,1220.1,112.58679515]
[1610196892614,16.20049,1220.2,1220.1,112.58679515]
[1610196892815,16.20049,1220.2,1220.1,51.25189515]
[1610196899517,12.1909,1220.2,1220.1,51.25189515]
[1610196902121,12.1909,1220.2,1220.1,103.16909515]
[1610196912633,12.1909,1220.2,1220.1,51.25189515]
[1610196922542,13.8408,1220.2,1220.1,51.25189515]
[1610196922741,17.85039,1220.2,1220.1,51.25189515]
[1610196922943,17.85039,1220.2,1220.0,2.5227]
[1610196923142,17.85039,1220.2,1219.9,50.0]
[1610196923342,47.85039,1220.2,1219.8,4.00959]
[1610196923942,46.20049,1220.2,1219.8,4.00959]
[1610196924145,46.20049,1220.2,1219.9,51.25254659]
[1610196924643,4.00959,1220.0,1219.9,51.25254659]
[1610196924843,4.00959,1220.0,1219.9,1.25254659]
[1610196925244,5.64589,1220.0,1219.9,1.25254659]
[1610196925444,5.64589,1220.0,1219.7,1.25246973]
[1610196925646,1.6363,1220.0,1219.8,50.0]
[1610196926246,1.6363,1220.0,1219.7,1.25246973]
[1610196926646,1.6363,1220.0,1219.9,69.05799]
[1610196926847,1.6363,1220.0,1219.9,70.93709]
[1610196927244,1.6363,1220.0,1219.9,120.93709]
[1610196927644,1.6363,1220.0,1219.9,70.93709]
[1610196928347,1.6363,1220.0,1219.9,120.93709]
[1610196928548,1.6363,1220.0,1219.9,122.18924332]
[1610196929448,12.1909,1220.2,1219.9,122.18924332]
[1610196929848,12.1909,1220.2,1220.0,50.0]
[1610196930148,12.1909,1220.2,1220.1,50.0]
[1610196930548,13.8354,1220.2,1220.1,50.0]
[1610196930748,13.8354,1220.2,1220.1,54.00959]
[1610196931348,13.8354,1220.2,1220.1,55.26166613]
[1610196932649,12.1909,1220.2,1220.1,55.26166613]
[1610196933650,13.8479,1220.2,1220.1,55.26166613]
[1610196934250,12.1909,1220.2,1220.1,55.26166613]
[1610196935255,13.8356,1220.2,1220.1,55.26166613]
[1610196937357,12.1909,1220.2,1220.1,55.26166613]
[1610196938460,13.8477,1220.2,1220.1,55.26166613]
[1610196941363,12.1909,1220.2,1220.1,55.26166613]
[1610196951271,1.5197,1220.2,1220.1,55.26166613]
[1610196951873,53.49673968,1221.6,1220.1,55.26166613]
[1610196952073,53.49165728,1221.8,1221.2,64.5006]
[1610196952274,53.49165728,1221.8,1221.2,66.2794]
[1610196952675,53.49165728,1221.8,1221.3,50.0]
[1610196952875,53.49165728,1221.8,1221.7,4.00959]
[1610196953474,57.49779623,1221.9,1221.7,50.72349]
[1610196953674,57.49779623,1221.9,1221.7,100.72349]
[1610196954174,57.49779623,1221.9,1221.8,50.0]
[1610196954375,53.48820623,1221.9,1221.8,50.0]
[1610196954977,15.02134633,1222.1,1221.8,50.0]
[1610196954978,15.02134633,1222.1,1221.9,60.3436]
[1610196954979,53.48045948,1222.1,1221.9,60.3436]
[1610196955375,53.48045948,1222.1,1221.9,110.3436]
[1610196955575,53.48045948,1222.1,1221.9,60.3436]
[1610196955775,53.47628739,1222.2,1221.9,60.3436]
[1610196956276,53.47628739,1222.2,1222.0,50.0]
[1610196956676,49.96825094,1222.2,1222.1,50.0]
[1610196956876,4.00959,1222.2,1222.1,54.00959]
[1610196957076,53.47630041,1222.2,1222.1,54.00959]
[1610196957277,53.47630041,1222.2,1222.1,4.00959]
[1610196957678,15.01823797,1222.4,1222.1,54.00959]
[1610196957976,53.4755035,1222.2,1222.1,54.00959]
[1610196958576,53.4755035,1222.2,1222.1,4.00959]
[1610196959578,53.4755035,1222.2,1222.1,54.00959]
[1610196959778,1.22196283,1222.2,1222.1,50.0]
[1610196959981,1.22196283,1222.2,1222.0,50.0]
[1610196960182,17.22196283,1222.2,1222.0,50.0]
[1610196960484,32.24135748,1222.2,1222.0,50.0]
[1610196960681,1.22206448,1222.1,1221.9,54.4661]
[1610196960882,1.22206448,1222.1,1222.0,4.00959]
[1610196962090,53.479824,1222.1,1222.0,4.00959]
[1610196962290,31.01870357,1222.2,1222.0,4.00959]
[1610196962691,53.4763419,1222.1,1222.0,4.00959]
[1610196963089,69.47566443,1222.2,1222.0,4.00959]
[1610196964091,53.4769105,1222.1,1222.0,4.00959]
[1610196964492,69.47616169,1222.2,1222.1,52.0635]
[1610196964694,69.47616169,1222.2,1222.1,102.0635]
[1610196965294,69.47616169,1222.2,1222.1,52.0635]
[1610196965695,16.0,1222.2,1222.1,52.0635]
[1610196965894,16.0,1222.2,1222.1,102.0635]
[1610196966896,16.0,1222.2,1222.1,52.078]
[1610196967097,16.0,1222.2,1222.1,2.078]
[1610196967697,16.0,1222.2,1222.1,52.078]
[1610196968699,16.0,1222.2,1222.1,53.3277706]
[1610196973707,5.2841,1222.2,1222.1,53.3277706]
[1610196975907,53.41536765,1223.8,1223.3,49.178]
[1610196976108,53.40956868,1223.9,1223.3,49.178]
[1610196976609,53.40956868,1223.9,1223.3,51.1799]
[1610196976808,53.40956868,1223.9,1223.8,4.00959]
[1610196977607,53.40956868,1223.9,1223.8,54.00959]
[1610196978910,57.41915868,1223.9,1223.7,1.7789]
[1610196979112,53.40956868,1223.9,1223.7,1.7789]
[1610196979513,53.4075281,1223.8,1223.7,1.7789]
[1610196979912,53.4075281,1223.8,1223.7,51.7789]
[1610196980112,53.40695773,1223.9,1223.7,51.7789]
[1610196980513,53.40750925,1223.8,1223.7,51.7789]
[1610196981418,53.40619125,1223.9,1223.7,51.7789]
[1610196981812,53.40588273,1224.0,1223.7,1.7789]
[1610196982212,53.40662613,1223.9,1223.6,109.33379]
[1610196982413,53.40662613,1223.9,1223.7,50.0]
[1610196982813,53.40662613,1223.9,1223.8,4.00959]
[1610196983417,1.11092122,1223.9,1223.8,4.00959]
[1610196983813,53.40786473,1223.9,1223.8,4.00959]
[1610196985715,53.40786473,1223.9,1223.8,54.00959]
[1610196987118,53.40278241,1224.0,1223.8,54.00959]
[1610196987419,53.40359189,1223.9,1223.8,54.00959]
[1610196989021,53.40359189,1223.9,1223.8,4.00959]
[1610196989221,1.11072473,1224.0,1223.8,4.00959]
[1610196989622,16.10941528,1224.0,1223.8,10.95039]
[1610196989822,1.11072473,1224.0,1223.8,10.95039]
[1610196990222,1.11091863,1223.9,1223.8,10.95039]
[1610196990525,1.11089248,1224.0,1223.8,10.95039]
[1610196991122,53.40869916,1223.9,1223.8,10.95039]
[1610196991521,16.10992761,1224.0,1223.8,10.95039]
[1610196991722,1.11089248,1224.0,1223.8,10.95039]
[1610196992122,53.40598509,1223.9,1223.8,12.19949988]
[1610196993824,53.40598509,1223.9,1223.8,62.19949988]
[1610196994223,53.40598509,1223.9,1223.8,12.19949988]
[1610196994425,14.99894515,1224.1,1223.8,12.19949988]
[1610196995025,53.40650289,1223.9,1223.8,12.19949988]
[1610196995526,53.40650289,1223.9,1223.8,62.19949988]
[1610196996326,53.40427495,1224.0,1223.8,62.19949988]
[1610196996726,53.40427495,1224.0,1223.8,12.19949988]
[1610196997326,53.40427495,1224.0,1223.8,62.19949988]
[1610196997526,53.40427495,1224.0,1223.9,1.24904709]
[1610196997728,53.40427495,1224.0,1223.9,51.24904709]
[1610196999327,53.40427495,1224.0,1223.9,53.35834709]
[1610197002229,14.99777551,1224.2,1223.9,53.35834709]
[1610197002431,12.99884915,1224.0,1223.9,53.35834709]
[1610197002630,53.40472971,1224.0,1223.9,3.35834709]
[1610197003230,53.4004411,1224.1,1223.9,52.1093]
[1610197003430,53.4004411,1224.1,1223.9,115.6652]
[1610197003632,53.4004411,1224.1,1224.0,50.0]
[1610197005134,53.4004411,1224.1,1224.0,54.00959]
[1610197005335,53.4004411,1224.1,1224.0,120.13829]
[1610197005938,53.4004411,1224.1,1224.0,54.00959]
[1610197006137,53.39699052,1224.2,1224.0,54.00959]
[1610197006736,53.39800005,1224.1,1224.0,4.00959]
[1610197007438,53.29805994,1224.1,1224.0,4.00959]
[1610197007637,53.29805994,1224.1,1224.0,54.00959]
[1610197007838,0.98580504,1224.1,1224.0,54.00959]
[1610197008039,14.99694505,1224.2,1224.0,4.00959]
[1610197009340,15.9829611,1224.3,1224.0,4.00959]
[1610197009540,14.99696951,1224.2,1224.0,54.00959]
[1610197009840,53.30125731,1224.1,1224.0,4.00959]
[1610197010240,53.30125731,1224.1,1224.0,54.00959]
[1610197012548,53.30125731,1224.1,1223.9,2.1093]
[1610197012749,53.30125731,1224.1,1223.8,50.0]
[1610197012948,53.30125731,1224.1,1223.6,2.5821]
[1610197013149,57.3163526,1223.9,1223.7,4.00959]
[1610197013751,53.3067626,1223.9,1223.7,4.00959]
[1610197014849,53.3067626,1223.9,1223.7,54.00959]
[1610197015050,57.3163526,1223.9,1223.7,4.00959]
[1610197015250,53.30832888,1223.8,1223.7,4.00959]
[1610197016851,53.31090093,1223.9,1223.7,4.00959]
[1610197017050,53.31090093,1223.9,1223.8,50.0]
[1610197017249,53.31090093,1223.9,1223.8,51.8404]
[1610197017450,53.31090093,1223.9,1223.8,1.8404]
[1610197017749,0.98798708,1224.0,1223.8,1.8404]
[1610197017950,11.25836032,1223.9,1223.8,51.8404]
[1610197018150,1.00316183,1224.0,1223.8,51.8404]
[1610197018550,53.31031071,1223.9,1223.8,1.8404]
[1610197018952,53.31031071,1223.9,1223.8,51.8404]
[1610197019151,53.31031071,1223.9,1223.8,1.8404]
[1610197019553,53.31031071,1223.9,1223.8,51.8404]
[1610197019953,53.31031071,1223.9,1223.8,1.8404]
[1610197020653,53.31031071,1223.9,1223.7,54.00959]
[1610197020654,15.00013005,1224.0,1223.7,54.00959]
[1610197021155,57.32273949,1223.8,1223.7,4.00959]
[1610197021757,57.32273949,1223.8,1223.5,50.0]
[1610197022158,53.3246763,1223.6,1223.5,50.0]
[1610197022559,15.99271855,1223.7,1223.5,50.0]
[1610197022859,26.2312003,1223.6,1223.5,50.0]
[1610197023059,30.2407903,1223.6,1223.5,50.0]
[1610197023459,30.2407903,1223.6,1223.0,4.00959]
[1610197023460,19.01433165,1223.6,1223.0,4.00959]
[1610197023660,19.01433165,1223.6,1223.0,51.77149]
[1610197023861,53.33037575,1223.3,1223.0,51.77149]
[1610197024061,53.33037575,1223.3,1223.0,4.00959]
[1610197024259,83.33037575,1223.3,1223.1,50.0]
[1610197024461,53.33629875,1223.2,1223.1,50.0]
[1610197024660,33.22769964,1223.2,1223.1,50.0]
[1610197024861,33.22769964,1223.2,1222.7,2.3528]
[1610197025061,4.00959,1222.9,1222.7,6.36239]
[1610197025862,4.00959,1222.9,1222.7,4.00959]
[1610197026063,6.40159,1222.9,1222.7,4.00959]
[1610197026264,59.74683373,1222.9,1222.4,50.0]
[1610197026463,89.74683373,1222.9,1222.4,50.0]
[1610197026865,53.34985386,1222.8,1222.4,50.0]
[1610197027065,4.00959,1222.5,1222.4,50.0]
[1610197027265,35.90309,1222.5,1222.4,50.0]
[1610197027466,35.90309,1222.5,1222.3,50.0]
[1610197027869,53.36994108,1222.4,1222.3,50.0]
[1610197028068,83.36994108,1222.4,1222.3,50.0]
[1610197028267,33.28959837,1222.4,1221.6,52.5849]
[1610197028667,53.37628647,1222.2,1221.6,52.5849]
[1610197028870,55.53638647,1222.2,1221.6,52.5849]
[1610197029068,4.00959,1221.9,1221.7,4.00959]
[1610197029468,4.00959,1221.9,1220.9,59.7093]
[1610197029868,34.00959,1221.9,1220.9,59.7093]
[1610197030071,34.00959,1221.9,1221.5,50.0]
[1610197030570,87.39751971,1221.9,1221.5,50.0]
[1610197030769,57.39751971,1221.9,1221.5,50.0]
[1610197031172,4.00959,1221.7,1221.5,50.0]
[1610197031973,4.00959,1221.7,1221.3,54.00959]
[1610197033176,53.39018662,1221.8,1221.6,4.00959]
[1610197033376,53.38956742,1221.9,1221.6,4.00959]
[1610197033779,53.38570259,1222.0,1221.4,55.2777]
[1610197033979,59.99211172,1222.1,1221.6,50.0]
[1610197034583,59.99211172,1222.1,1221.4,55.2777]
[1610197034981,53.38281172,1222.1,1221.4,55.2777]
[1610197035182,55.53625393,1222.2,1222.0,4.00959]
[1610197035381,53.37615393,1222.2,1222.0,4.00959]
[1610197035583,53.3730449,1222.3,1222.0,4.00959]
[1610197036285,55.26467905,1222.5,1222.0,4.00959]
[1610197036683,53.37054909,1222.4,1222.0,4.00959]
[1610197036985,55.26299627,1222.5,1222.0,4.00959]
[1610197037183,4.00959,1222.1,1222.0,4.00959]
[1610197037984,4.00959,1222.1,1221.7,1.7543]
[1610197038485,53.36708228,1222.5,1221.7,1.7543]
[1610197039190,4.00959,1222.3,1222.0,4.00959]
[1610197039786,53.36708228,1222.5,1222.0,4.00959]
[1610197040085,53.36455842,1222.6,1222.0,4.00959]
[1610197041185,53.36455842,1222.6,1222.5,4.00959]
[1610197041385,48.35631513,1222.6,1222.5,4.00959]
[1610197041586,64.35579076,1222.8,1222.5,4.00959]
[1610197041788,11.0,1222.8,1222.5,4.00959]
[1610197042789,11.0,1222.8,1222.5,11.07419]
[1610197043190,11.0,1222.8,1222.7,4.00959]
[1610197043590,11.0,1222.8,1222.7,6.23759]
[1610197045191,15.00959,1222.8,1222.7,2.228]
[1610197045392,15.00959,1222.8,1222.5,7.0646]
[1610197045792,11.0,1222.8,1222.5,7.0646]
[1610197046394,11.0,1222.8,1222.4,2.3982]
[1610197046992,11.0,1222.8,1222.0,52.2526]
[1610197047192,11.0,1222.8,1222.7,4.00959]
[1610197047392,11.0,1222.8,1222.3,2.1492]
[1610197048593,11.0,1222.8,1222.7,50.0]
[1610197049193,15.00959,1222.8,1222.6,50.0]
[1610197049394,15.00959,1222.8,1222.4,50.0]
[1610197049893,15.00959,1222.8,1222.5,50.0]
[1610197050196,15.00959,1222.8,1222.4,50.0]
[1610197050597,11.0,1222.8,1222.5,50.0]
[1610197051298,11.0,1222.8,1222.6,4.00959]
[1610197051497,64.35423053,1222.8,1222.6,4.00959]